[Event "Titled Tuesday Blitz June 13 Late 2023"]
[White "Zakhartsov, Vladimir"]
[Black "Paravyan, David"]
[WhiteFideId "4145097"]
[BlackFideId "4194985"]
[WhiteElo "2508"]
[BlackElo "2563"]
[Result "0-1"]
[Round "4"]
[TimeControl "180+2"]
[Date "2023.06.13"]
[WhiteClock "0:00:00"]
[BlackClock "0:00:04"]
[Board "3"]

1. e4 {[%clk 0:03:00]}  e5 {[%clk 0:02:59]} 2. Nf3 {[%clk 0:03:00]}  Nf6 {[%clk 0:03:00]} 3. Nc3 {[%clk 0:03:00]}  Nc6 {[%clk 0:03:00]} 4. a3 {[%clk 0:03:00]}  d5 {[%clk 0:02:59]} 5. exd5 {[%clk 0:02:59]}  Nxd5 {[%clk 0:03:00]} 6. Nxe5 {[%clk 0:02:59]}  Nxc3 {[%clk 0:02:38]} 7. Nxc6 {[%clk 0:02:56]}  Nxd1 {[%clk 0:02:39]} 8. Nxd8 {[%clk 0:02:55]}  Nxf2 {[%clk 0:02:39]} 9. Nxf7 {[%clk 0:02:39]}  Nxh1 {[%clk 0:02:37]} 10. Nxh8 {[%clk 0:02:39]}  Bd6 {[%clk 0:02:29]} 11. g3 {[%clk 0:02:19]}  Bd7 {[%clk 0:01:49]} 12. Bg2 {[%clk 0:02:04]}  Nxg3 {[%clk 0:00:54]} 13. hxg3 {[%clk 0:01:35]}  O-O-O {[%clk 0:00:42]} 14. Nf7 {[%clk 0:01:06]}  Re8+ {[%clk 0:00:33]} 15. Kf2 {[%clk 0:01:04]}  Bc5+ {[%clk 0:00:18]} 16. Kf1 {[%clk 0:01:04]}  Rf8 {[%clk 0:00:18]} 17. Bd5 {[%clk 0:01:04]}  Be8 {[%clk 0:00:15]} 18. Kg2 {[%clk 0:00:50]}  Bxf7 {[%clk 0:00:14]} 19. Bf3 {[%clk 0:00:51]}  c6 {[%clk 0:00:06]} 20. b4 {[%clk 0:00:42]}  Bd4 {[%clk 0:00:06]} 21. c3 {[%clk 0:00:42]}  Bf6 {[%clk 0:00:06]} 22. d4 {[%clk 0:00:41]}  Bd5 {[%clk 0:00:07]} 23. Bxd5 {[%clk 0:00:21]}  cxd5 {[%clk 0:00:07]} 24. Bf4 {[%clk 0:00:21]}  Kd7 {[%clk 0:00:08]} 25. b5 {[%clk 0:00:17]}  Rc8 {[%clk 0:00:08]} 26. Bd2 {[%clk 0:00:17]}  a6 {[%clk 0:00:04]} 27. a4 {[%clk 0:00:17]}  axb5 {[%clk 0:00:04]} 28. axb5 {[%clk 0:00:18]}  Kc7 {[%clk 0:00:05]} 29. Rf1 {[%clk 0:00:09]}  Kb6 {[%clk 0:00:05]} 30. Rf5 {[%clk 0:00:09]}  Rd8 {[%clk 0:00:05]} 31. g4 {[%clk 0:00:09]}  Kxb5 {[%clk 0:00:02]} 32. g5 {[%clk 0:00:10]}  Be7 {[%clk 0:00:03]} 33. Rf7 {[%clk 0:00:10]}  Re8 {[%clk 0:00:01]} 34. Rxg7 {[%clk 0:00:11]}  Kc4 {[%clk 0:00:02]} 35. Rxh7 {[%clk 0:00:11]}  Kd3 {[%clk 0:00:03]} 36. Bf4 {[%clk 0:00:10]}  Kxc3 {[%clk 0:00:03]} 37. g6 {[%clk 0:00:11]}  Kxd4 {[%clk 0:00:03]} 38. g7 {[%clk 0:00:10]}  Bf6 {[%clk 0:00:04]} 39. Kf3 {[%clk 0:00:07]}  Rg8 {[%clk 0:00:04]} 40. Rh6 {[%clk 0:00:06]}  Bxg7 {[%clk 0:00:04]} 41. Rg6 {[%clk 0:00:06]}  b5 {[%clk 0:00:04]} 42. Kg4 {[%clk 0:00:03]}  b4 {[%clk 0:00:04]} 43. Bh6 {[%clk 0:00:03]}  Bxh6 {[%clk 0:00:04]} 44. Rxg8 {[%clk 0:00:04]}  b3 {[%clk 0:00:05]} 45. Rb8 {[%clk 0:00:01]}  Kc3 {[%clk 0:00:06]} 46. Kf3 {[%clk 0:00:02]}  b2 {[%clk 0:00:05]} 47. Ke2 {[%clk 0:00:01]}  Bg7 {[%clk 0:00:02]} 48. Kd1 {[%clk 0:00:01]}  Kd3 {[%clk 0:00:03]} 49. Rb3+ {[%clk 0:00:01]}  Bc3 {[%clk 0:00:03]} 50. Rb8 {[%clk 0:00:02]}  d4 {[%clk 0:00:04]} 51. Rb7 {[%clk 0:00:02]}  Kc4 {[%clk 0:00:03]} 52. Kc2 {[%clk 0:00:02]}  d3+ {[%clk 0:00:03]} 53. Kb1 {[%clk 0:00:03]}  Be5 {[%clk 0:00:04]} 54. Rd7 {[%clk 0:00:02]}  Kc3 {[%clk 0:00:04]} 55. Rd8 {[%clk 0:00:02]}  d2 {[%clk 0:00:03]} 56. Rc8+ {[%clk 0:00:02]}  Kd3 {[%clk 0:00:04]} 57. Rd8+ {[%clk 0:00:00]}  Bd4 {[%clk 0:00:04]} 0-1


[Site "https://www.chess.com"]

[Event "Titled Tuesday Blitz June 13 Late 2023"]
[White "Dardha, Daniel"]
[Black "Martinez Alcantara, Jose Eduardo"]
[WhiteFideId "240990"]
[BlackFideId "3805662"]
[WhiteElo "2572"]
[BlackElo "2711"]
[Result "1-0"]
[Round "4"]
[TimeControl "180+2"]
[Date "2023.06.13"]
[WhiteClock "0:00:05"]
[BlackClock "0:00:00"]
[Board "5"]

1. d4 {[%clk 0:03:00]}  Nf6 {[%clk 0:02:59]} 2. Bg5 {[%clk 0:03:00]}  Ne4 {[%clk 0:02:56]} 3. h4 {[%clk 0:02:59]}  d5 {[%clk 0:02:54]} 4. Nd2 {[%clk 0:02:59]}  Nxd2 {[%clk 0:02:54]} 5. Qxd2 {[%clk 0:02:59]}  c6 {[%clk 0:02:53]} 6. O-O-O {[%clk 0:02:59]}  h6 {[%clk 0:02:52]} 7. Bf4 {[%clk 0:02:58]}  Bf5 {[%clk 0:02:52]} 8. f3 {[%clk 0:02:58]}  e6 {[%clk 0:02:52]} 9. g4 {[%clk 0:02:57]}  Bh7 {[%clk 0:02:52]} 10. g5 {[%clk 0:02:56]}  h5 {[%clk 0:02:48]} 11. e3 {[%clk 0:02:52]}  Nd7 {[%clk 0:02:44]} 12. Bd3 {[%clk 0:02:52]}  Bxd3 {[%clk 0:02:44]} 13. Qxd3 {[%clk 0:02:53]}  g6 {[%clk 0:02:44]} 14. Ne2 {[%clk 0:02:47]}  Qa5 {[%clk 0:02:39]} 15. Kb1 {[%clk 0:02:46]}  Be7 {[%clk 0:02:38]} 16. e4 {[%clk 0:02:43]}  O-O {[%clk 0:02:31]} 17. Bc1 {[%clk 0:02:43]}  Bd6 {[%clk 0:02:25]} 18. Nf4 {[%clk 0:02:39]}  Bxf4 {[%clk 0:02:21]} 19. Bxf4 {[%clk 0:02:39]}  Rfe8 {[%clk 0:02:22]} 20. Rhe1 {[%clk 0:02:37]}  Rac8 {[%clk 0:02:21]} 21. c4 {[%clk 0:02:27]}  dxc4 {[%clk 0:02:13]} 22. Qxc4 {[%clk 0:02:27]}  Red8 {[%clk 0:02:10]} 23. Qb3 {[%clk 0:02:16]}  Qa6 {[%clk 0:02:01]} 24. Bd6 {[%clk 0:02:11]}  Nb6 {[%clk 0:01:57]} 25. Be7 {[%clk 0:02:09]}  Rd7 {[%clk 0:01:55]} 26. Bf6 {[%clk 0:02:10]}  Rdc7 {[%clk 0:01:42]} 27. f4 {[%clk 0:01:58]}  Nd7 {[%clk 0:01:31]} 28. f5 {[%clk 0:01:56]}  c5 {[%clk 0:01:23]} 29. fxg6 {[%clk 0:01:53]}  fxg6 {[%clk 0:01:24]} 30. d5 {[%clk 0:01:45]}  c4 {[%clk 0:01:24]} 31. Qc3 {[%clk 0:01:44]}  Nc5 {[%clk 0:01:24]} 32. d6 {[%clk 0:01:38]}  Rf7 {[%clk 0:01:24]} 33. Qe5 {[%clk 0:01:09]}  Qc6 {[%clk 0:01:05]} 34. Qd4 {[%clk 0:00:59]}  b5 {[%clk 0:00:56]} 35. e5 {[%clk 0:00:50]}  Qd7 {[%clk 0:00:42]} 36. Rf1 {[%clk 0:00:46]}  a5 {[%clk 0:00:35]} 37. Be7 {[%clk 0:00:41]}  Rf5 {[%clk 0:00:35]} 38. Rxf5 {[%clk 0:00:17]}  gxf5 {[%clk 0:00:35]} 39. g6 {[%clk 0:00:16]}  Ne4 {[%clk 0:00:34]} 40. Qe3 {[%clk 0:00:15]}  Kg7 {[%clk 0:00:10]} 41. Rg1 {[%clk 0:00:15]}  Rg8 {[%clk 0:00:04]} 42. Qd4 {[%clk 0:00:07]}  b4 {[%clk 0:00:03]} 43. Bf6+ {[%clk 0:00:08]}  Kf8 {[%clk 0:00:03]} 44. Qb6 {[%clk 0:00:07]}  Rxg6 {[%clk 0:00:01]} 45. Rxg6 {[%clk 0:00:06]}  c3 {[%clk 0:00:00]} 46. Qb8+ {[%clk 0:00:05]} 1-0


[Site "https://www.chess.com"]

[Event "Titled Tuesday Blitz June 13 Late 2023"]
[White "Jumabayev, Rinat"]
[Black "Korobov, Anton"]
[WhiteFideId "13702661"]
[BlackFideId "14105730"]
[WhiteElo "2561"]
[BlackElo "2638"]
[Result "0-1"]
[Round "4"]
[TimeControl "180+2"]
[Date "2023.06.13"]
[WhiteClock "0:00:00"]
[BlackClock "0:00:07"]
[Board "7"]

1. e4 {[%clk 0:03:00]}  c5 {[%clk 0:02:55]} 2. Nf3 {[%clk 0:03:01]}  d6 {[%clk 0:02:56]} 3. d4 {[%clk 0:03:00]}  cxd4 {[%clk 0:02:56]} 4. Qxd4 {[%clk 0:03:01]}  Nf6 {[%clk 0:02:57]} 5. Bb5+ {[%clk 0:02:55]}  Nc6 {[%clk 0:02:57]} 6. Qd3 {[%clk 0:02:55]}  Bd7 {[%clk 0:02:47]} 7. O-O {[%clk 0:02:53]}  a6 {[%clk 0:02:43]} 8. Ba4 {[%clk 0:02:48]}  Rc8 {[%clk 0:02:34]} 9. Qe2 {[%clk 0:02:48]}  g6 {[%clk 0:02:24]} 10. Rd1 {[%clk 0:02:44]}  Bg7 {[%clk 0:02:21]} 11. Bxc6 {[%clk 0:02:40]}  Bxc6 {[%clk 0:02:12]} 12. e5 {[%clk 0:02:39]}  Ne4 {[%clk 0:02:13]} 13. Nd4 {[%clk 0:02:26]}  d5 {[%clk 0:02:00]} 14. f3 {[%clk 0:02:10]}  Nc5 {[%clk 0:01:57]} 15. Be3 {[%clk 0:01:46]}  Bd7 {[%clk 0:01:41]} 16. Nc3 {[%clk 0:01:33]}  e6 {[%clk 0:01:41]} 17. Bf4 {[%clk 0:01:27]}  g5 {[%clk 0:01:26]} 18. Bg3 {[%clk 0:01:20]}  h5 {[%clk 0:01:26]} 19. h3 {[%clk 0:01:17]}  g4 {[%clk 0:01:16]} 20. fxg4 {[%clk 0:01:14]}  Qg5 {[%clk 0:01:10]} 21. Nf3 {[%clk 0:01:05]}  Qg6 {[%clk 0:01:10]} 22. g5 {[%clk 0:00:44]}  Ne4 {[%clk 0:00:58]} 23. Be1 {[%clk 0:00:44]}  Nxg5 {[%clk 0:00:57]} 24. Nh4 {[%clk 0:00:37]}  Qh7 {[%clk 0:00:50]} 25. Rd4 {[%clk 0:00:35]}  f6 {[%clk 0:00:39]} 26. exf6 {[%clk 0:00:16]}  Bxf6 {[%clk 0:00:39]} 27. Rxd5 {[%clk 0:00:17]}  O-O {[%clk 0:00:30]} 28. Rd6 {[%clk 0:00:16]}  Bc6 {[%clk 0:00:28]} 29. Rad1 {[%clk 0:00:16]}  Qg7 {[%clk 0:00:24]} 30. Rxc6 {[%clk 0:00:11]}  Rxc6 {[%clk 0:00:22]} 31. Kh1 {[%clk 0:00:11]}  Nf7 {[%clk 0:00:15]} 32. Qxh5 {[%clk 0:00:09]}  Ne5 {[%clk 0:00:15]} 33. Ne4 {[%clk 0:00:08]}  Rxc2 {[%clk 0:00:14]} 34. Bg3 {[%clk 0:00:06]}  Bxh4 {[%clk 0:00:12]} 35. Qxh4 {[%clk 0:00:07]}  Ng6 {[%clk 0:00:11]} 36. Qg5 {[%clk 0:00:07]}  Re2 {[%clk 0:00:09]} 37. Nd6 {[%clk 0:00:05]}  e5 {[%clk 0:00:07]} 38. Rc1 {[%clk 0:00:04]}  Nf4 {[%clk 0:00:07]} 39. Qxg7+ {[%clk 0:00:04]}  Kxg7 {[%clk 0:00:08]} 40. Rc7+ {[%clk 0:00:04]}  Kf6 {[%clk 0:00:07]} 41. Bh4+ {[%clk 0:00:04]}  Ke6 {[%clk 0:00:07]} 42. Nc4 {[%clk 0:00:03]}  Nxg2 {[%clk 0:00:08]} 43. Re7+ {[%clk 0:00:03]}  Kd5 {[%clk 0:00:08]} 44. Nb6+ {[%clk 0:00:03]}  Kc5 {[%clk 0:00:08]} 45. Nd7+ {[%clk 0:00:03]}  Kd6 {[%clk 0:00:07]} 46. Nxf8 {[%clk 0:00:04]}  Nxh4 {[%clk 0:00:08]} 47. Rxb7 {[%clk 0:00:04]}  Nf3 {[%clk 0:00:07]} 48. Rd7+ {[%clk 0:00:00]}  Kc6 {[%clk 0:00:07]} 0-1


[Site "https://www.chess.com"]

[Event "Titled Tuesday Blitz June 13 Late 2023"]
[White "Talibov, Shiroghlan"]
[Black "Eljanov, Pavel"]
[WhiteFideId "13429078"]
[BlackFideId "14102951"]
[WhiteElo "2274"]
[BlackElo "2598"]
[Result "0-1"]
[Round "4"]
[TimeControl "180+2"]
[Date "2023.06.13"]
[WhiteClock "0:00:00"]
[BlackClock "0:00:51"]
[Board "9"]

1. e4 {[%clk 0:03:00]}  e5 {[%clk 0:02:59]} 2. Nf3 {[%clk 0:02:59]}  Nc6 {[%clk 0:02:59]} 3. Bb5 {[%clk 0:02:57]}  a6 {[%clk 0:02:59]} 4. Ba4 {[%clk 0:02:56]}  Nf6 {[%clk 0:02:59]} 5. O-O {[%clk 0:02:56]}  Be7 {[%clk 0:02:59]} 6. Re1 {[%clk 0:02:54]}  b5 {[%clk 0:02:58]} 7. Bb3 {[%clk 0:02:54]}  O-O {[%clk 0:02:59]} 8. c3 {[%clk 0:02:52]}  d5 {[%clk 0:02:59]} 9. exd5 {[%clk 0:02:53]}  Nxd5 {[%clk 0:02:59]} 10. Nxe5 {[%clk 0:02:54]}  Nxe5 {[%clk 0:03:00]} 11. Rxe5 {[%clk 0:02:55]}  Bb7 {[%clk 0:03:00]} 12. d4 {[%clk 0:02:36]}  Bf6 {[%clk 0:03:00]} 13. Re1 {[%clk 0:02:30]}  Re8 {[%clk 0:03:00]} 14. Rxe8+ {[%clk 0:02:12]}  Qxe8 {[%clk 0:03:00]} 15. Nd2 {[%clk 0:02:13]}  Nf4 {[%clk 0:02:56]} 16. Nf3 {[%clk 0:02:02]}  Bxf3 {[%clk 0:02:53]} 17. gxf3 {[%clk 0:01:56]}  Bg5 {[%clk 0:02:54]} 18. Bxf4 {[%clk 0:01:34]}  Bxf4 {[%clk 0:02:55]} 19. Qe1 {[%clk 0:01:21]}  Qd8 {[%clk 0:02:55]} 20. Qe4 {[%clk 0:01:21]}  Qg5+ {[%clk 0:02:55]} 21. Kh1 {[%clk 0:01:21]}  Rf8 {[%clk 0:02:54]} 22. Rg1 {[%clk 0:01:20]}  Qh4 {[%clk 0:02:53]} 23. Rg2 {[%clk 0:01:19]}  g6 {[%clk 0:02:53]} 24. a3 {[%clk 0:01:06]}  Kg7 {[%clk 0:02:52]} 25. Bd5 {[%clk 0:01:04]}  Rd8 {[%clk 0:02:43]} 26. Bb3 {[%clk 0:01:02]}  Rd7 {[%clk 0:02:38]} 27. Qb1 {[%clk 0:00:25]}  Re7 {[%clk 0:02:32]} 28. Kg1 {[%clk 0:00:15]}  Re2 {[%clk 0:02:00]} 29. Kf1 {[%clk 0:00:12]}  Re7 {[%clk 0:01:35]} 30. Kg1 {[%clk 0:00:06]}  a5 {[%clk 0:01:25]} 31. Qd1 {[%clk 0:00:06]}  h5 {[%clk 0:01:22]} 32. Bc2 {[%clk 0:00:06]}  a4 {[%clk 0:01:16]} 33. Be4 {[%clk 0:00:06]}  Re6 {[%clk 0:01:07]} 34. Qd3 {[%clk 0:00:06]}  Qe7 {[%clk 0:01:04]} 35. Qxb5 {[%clk 0:00:05]}  Kh6 {[%clk 0:00:58]} 36. h3 {[%clk 0:00:03]}  f5 {[%clk 0:00:58]} 37. Bd3 {[%clk 0:00:03]}  c6 {[%clk 0:00:55]} 38. Qa5 {[%clk 0:00:02]}  Re1+ {[%clk 0:00:54]} 39. Bf1 {[%clk 0:00:00]}  Qe2 {[%clk 0:00:51]} 0-1


[Site "https://www.chess.com"]

[Event "Titled Tuesday Blitz June 13 Late 2023"]
[White "Vazquez, Guillermo"]
[Black "Kravtsiv, Martyn"]
[WhiteFideId "3702308"]
[BlackFideId "14113147"]
[WhiteElo "2543"]
[BlackElo "2695"]
[Result "1-0"]
[Round "4"]
[TimeControl "180+2"]
[Date "2023.06.13"]
[WhiteClock "0:00:08"]
[BlackClock "0:00:00"]
[Board "10"]

1. b3 {[%clk 0:03:00]}  e5 {[%clk 0:02:58]} 2. Bb2 {[%clk 0:03:00]}  Nc6 {[%clk 0:02:58]} 3. c4 {[%clk 0:03:00]}  Nf6 {[%clk 0:02:57]} 4. e3 {[%clk 0:03:01]}  Be7 {[%clk 0:02:54]} 5. a3 {[%clk 0:03:00]}  O-O {[%clk 0:02:54]} 6. Qc2 {[%clk 0:03:01]}  d5 {[%clk 0:02:47]} 7. cxd5 {[%clk 0:03:02]}  Nxd5 {[%clk 0:02:47]} 8. Nf3 {[%clk 0:03:02]}  Bf6 {[%clk 0:02:42]} 9. d3 {[%clk 0:02:58]}  a5 {[%clk 0:02:18]} 10. Nbd2 {[%clk 0:02:57]}  g6 {[%clk 0:02:13]} 11. h4 {[%clk 0:02:54]}  Bg4 {[%clk 0:02:10]} 12. Be2 {[%clk 0:02:53]}  Bg7 {[%clk 0:02:09]} 13. Rc1 {[%clk 0:02:48]}  Re8 {[%clk 0:02:07]} 14. Ne4 {[%clk 0:02:45]}  Qc8 {[%clk 0:01:24]} 15. O-O {[%clk 0:01:53]}  Nde7 {[%clk 0:01:17]} 16. Nfg5 {[%clk 0:01:36]}  h6 {[%clk 0:01:12]} 17. Bxg4 {[%clk 0:01:16]}  Qxg4 {[%clk 0:01:13]} 18. Qc4 {[%clk 0:01:14]}  Qf5 {[%clk 0:01:00]} 19. Ng3 {[%clk 0:01:04]}  Qf6 {[%clk 0:00:50]} 20. N3e4 {[%clk 0:01:00]}  Qf5 {[%clk 0:00:50]} 21. Ng3 {[%clk 0:00:59]}  Qf6 {[%clk 0:00:49]} 22. Nf3 {[%clk 0:00:58]}  Rad8 {[%clk 0:00:46]} 23. h5 {[%clk 0:00:56]}  Nd5 {[%clk 0:00:36]} 24. hxg6 {[%clk 0:00:54]}  Qxg6 {[%clk 0:00:35]} 25. Qe4 {[%clk 0:00:53]}  Nf6 {[%clk 0:00:33]} 26. Qxg6 {[%clk 0:00:48]}  fxg6 {[%clk 0:00:34]} 27. Rfd1 {[%clk 0:00:48]}  Rd7 {[%clk 0:00:34]} 28. Kf1 {[%clk 0:00:48]}  Ng4 {[%clk 0:00:32]} 29. Ne4 {[%clk 0:00:45]}  Nd8 {[%clk 0:00:32]} 30. Ke2 {[%clk 0:00:40]}  b6 {[%clk 0:00:32]} 31. b4 {[%clk 0:00:40]}  axb4 {[%clk 0:00:31]} 32. axb4 {[%clk 0:00:41]}  Nf7 {[%clk 0:00:24]} 33. Rc6 {[%clk 0:00:39]}  Kh7 {[%clk 0:00:20]} 34. Ra1 {[%clk 0:00:33]}  Nd8 {[%clk 0:00:19]} 35. Rcc1 {[%clk 0:00:29]}  Ne6 {[%clk 0:00:19]} 36. b5 {[%clk 0:00:27]}  Red8 {[%clk 0:00:18]} 37. Rc6 {[%clk 0:00:26]}  Nc5 {[%clk 0:00:16]} 38. Nxc5 {[%clk 0:00:25]}  bxc5 {[%clk 0:00:17]} 39. Ne1 {[%clk 0:00:19]}  e4 {[%clk 0:00:13]} 40. Bxg7 {[%clk 0:00:13]}  exd3+ {[%clk 0:00:13]} 41. Kf3 {[%clk 0:00:14]}  Nh2+ {[%clk 0:00:10]} 42. Kg3 {[%clk 0:00:14]}  Nf1+ {[%clk 0:00:10]} 43. Kh3 {[%clk 0:00:12]}  d2 {[%clk 0:00:09]} 44. Bc3 {[%clk 0:00:08]}  d1=Q {[%clk 0:00:06]} 45. Rxd1 {[%clk 0:00:08]}  Rxd1 {[%clk 0:00:06]} 46. Rxc7+ {[%clk 0:00:09]}  R1d7 {[%clk 0:00:03]} 47. Rxc5 {[%clk 0:00:09]}  Rb8 {[%clk 0:00:03]} 48. g3 {[%clk 0:00:08]}  Rdb7 {[%clk 0:00:01]} 49. Kg2 {[%clk 0:00:07]}  Rxb5 {[%clk 0:00:00]} 50. Rxb5 {[%clk 0:00:08]} 1-0


[Site "https://www.chess.com"]

[Event "Titled Tuesday Blitz June 13 Late 2023"]
[White "Bortnyk, Olexandr"]
[Black "Lashkin, Jegor"]
[WhiteFideId "14120828"]
[BlackFideId "13907808"]
[WhiteElo "2733"]
[BlackElo "2368"]
[Result "1-0"]
[Round "4"]
[TimeControl "180+2"]
[Date "2023.06.13"]
[WhiteClock "0:00:21"]
[BlackClock "0:00:00"]
[Board "11"]

1. e4 {[%clk 0:03:00]}  c5 {[%clk 0:02:59]} 2. c3 {[%clk 0:03:00]}  e5 {[%clk 0:02:59]} 3. Nf3 {[%clk 0:02:59]}  Nc6 {[%clk 0:02:59]} 4. Bc4 {[%clk 0:03:00]}  Nf6 {[%clk 0:02:59]} 5. O-O {[%clk 0:02:56]}  Nxe4 {[%clk 0:02:53]} 6. d4 {[%clk 0:02:50]}  d5 {[%clk 0:02:45]} 7. Bb5 {[%clk 0:02:50]}  exd4 {[%clk 0:02:41]} 8. cxd4 {[%clk 0:02:50]}  Be7 {[%clk 0:02:34]} 9. Nc3 {[%clk 0:02:25]}  O-O {[%clk 0:02:23]} 10. h3 {[%clk 0:02:24]}  Nxd4 {[%clk 0:02:12]} 11. Nxd4 {[%clk 0:02:21]}  cxd4 {[%clk 0:02:12]} 12. Qxd4 {[%clk 0:02:21]}  Bf6 {[%clk 0:02:06]} 13. Qb4 {[%clk 0:02:07]}  a5 {[%clk 0:01:51]} 14. Qb3 {[%clk 0:02:05]}  Nxc3 {[%clk 0:01:46]} 15. bxc3 {[%clk 0:02:06]}  Be6 {[%clk 0:01:46]} 16. Ba3 {[%clk 0:01:57]}  Be7 {[%clk 0:01:43]} 17. Rfd1 {[%clk 0:01:54]}  Bxa3 {[%clk 0:01:41]} 18. Qxa3 {[%clk 0:01:55]}  Qc7 {[%clk 0:01:40]} 19. Be2 {[%clk 0:01:43]}  Rac8 {[%clk 0:01:28]} 20. Rd3 {[%clk 0:01:42]}  Qc5 {[%clk 0:01:20]} 21. Qb2 {[%clk 0:01:40]}  Rc7 {[%clk 0:01:20]} 22. Rg3 {[%clk 0:01:39]}  g6 {[%clk 0:01:16]} 23. h4 {[%clk 0:01:34]}  Rd8 {[%clk 0:01:05]} 24. Rd1 {[%clk 0:01:34]}  Rcd7 {[%clk 0:01:03]} 25. Rd4 {[%clk 0:01:32]}  Qe7 {[%clk 0:00:45]} 26. h5 {[%clk 0:01:32]}  Qf6 {[%clk 0:00:45]} 27. Qb6 {[%clk 0:01:25]}  Ra8 {[%clk 0:00:36]} 28. Bb5 {[%clk 0:01:10]}  Rdd8 {[%clk 0:00:29]} 29. Bd3 {[%clk 0:01:07]}  Kg7 {[%clk 0:00:23]} 30. hxg6 {[%clk 0:00:50]}  hxg6 {[%clk 0:00:24]} 31. Qxb7 {[%clk 0:00:29]}  Rab8 {[%clk 0:00:12]} 32. Qa7 {[%clk 0:00:28]}  Bf5 {[%clk 0:00:00]} 33. Rf4 {[%clk 0:00:21]} 1-0


[Site "https://www.chess.com"]

[Event "Titled Tuesday Blitz June 13 Late 2023"]
[White "Sanal, Vahap"]
[Black "Bazeev, German"]
[WhiteFideId "6300545"]
[BlackFideId "24119350"]
[WhiteElo "2606"]
[BlackElo "2466"]
[Result "1/2-1/2"]
[Round "4"]
[TimeControl "180+2"]
[Date "2023.06.13"]
[WhiteClock "0:00:08"]
[BlackClock "0:00:15"]
[Board "12"]

1. Nf3 {[%clk 0:02:59]}  Nf6 {[%clk 0:02:59]} 2. b3 {[%clk 0:02:59]}  d5 {[%clk 0:03:00]} 3. Bb2 {[%clk 0:02:59]}  c6 {[%clk 0:03:01]} 4. g3 {[%clk 0:02:59]}  Bg4 {[%clk 0:03:01]} 5. Bg2 {[%clk 0:02:59]}  Nbd7 {[%clk 0:03:02]} 6. O-O {[%clk 0:02:59]}  Bxf3 {[%clk 0:03:02]} 7. Bxf3 {[%clk 0:02:59]}  e5 {[%clk 0:03:03]} 8. Bg2 {[%clk 0:03:00]}  h5 {[%clk 0:03:02]} 9. h3 {[%clk 0:02:59]}  h4 {[%clk 0:03:03]} 10. g4 {[%clk 0:02:59]}  Bd6 {[%clk 0:03:04]} 11. e3 {[%clk 0:02:59]}  Qe7 {[%clk 0:03:02]} 12. c4 {[%clk 0:02:56]}  dxc4 {[%clk 0:03:02]} 13. bxc4 {[%clk 0:02:56]}  e4 {[%clk 0:03:02]} 14. Qc2 {[%clk 0:02:43]}  Nc5 {[%clk 0:02:54]} 15. Bxf6 {[%clk 0:02:18]}  gxf6 {[%clk 0:02:51]} 16. Nc3 {[%clk 0:02:08]}  f5 {[%clk 0:02:44]} 17. gxf5 {[%clk 0:02:02]}  Rg8 {[%clk 0:02:38]} 18. f4 {[%clk 0:01:59]}  O-O-O {[%clk 0:02:13]} 19. Kh1 {[%clk 0:01:44]}  Rde8 {[%clk 0:02:12]} 20. Rf2 {[%clk 0:01:32]}  Qf6 {[%clk 0:02:02]} 21. Rg1 {[%clk 0:01:19]}  Qxf5 {[%clk 0:01:57]} 22. Bf1 {[%clk 0:01:19]}  Qe6 {[%clk 0:01:43]} 23. Qd1 {[%clk 0:01:08]}  Rxg1+ {[%clk 0:01:19]} 24. Kxg1 {[%clk 0:01:09]}  Rg8+ {[%clk 0:01:20]} 25. Rg2 {[%clk 0:01:06]}  Rxg2+ {[%clk 0:01:20]} 26. Bxg2 {[%clk 0:01:07]}  f5 {[%clk 0:01:21]} 27. Bf1 {[%clk 0:01:03]}  Qg6+ {[%clk 0:01:17]} 28. Kh1 {[%clk 0:01:02]}  Be7 {[%clk 0:01:16]} 29. Na4 {[%clk 0:00:53]}  Nd7 {[%clk 0:01:12]} 30. Be2 {[%clk 0:00:49]}  Qg3 {[%clk 0:01:10]} 31. Qf1 {[%clk 0:00:49]}  Bb4 {[%clk 0:01:02]} 32. Qg2 {[%clk 0:00:31]}  Qxg2+ {[%clk 0:01:02]} 33. Kxg2 {[%clk 0:00:32]}  Bxd2 {[%clk 0:01:03]} 34. Kf2 {[%clk 0:00:32]}  Nf6 {[%clk 0:00:52]} 35. Nc5 {[%clk 0:00:32]}  Ne8 {[%clk 0:00:36]} 36. Ne6 {[%clk 0:00:31]}  Kd7 {[%clk 0:00:32]} 37. Nc5+ {[%clk 0:00:21]}  Ke7 {[%clk 0:00:32]} 38. Nxb7 {[%clk 0:00:21]}  Bb4 {[%clk 0:00:32]} 39. Bh5 {[%clk 0:00:17]}  Ng7 {[%clk 0:00:30]} 40. Bg6 {[%clk 0:00:14]}  Ba3 {[%clk 0:00:11]} 41. c5 {[%clk 0:00:14]}  Bb4 {[%clk 0:00:11]} 42. Ke2 {[%clk 0:00:14]}  Kf6 {[%clk 0:00:10]} 43. Bh7 {[%clk 0:00:12]}  Ne6 {[%clk 0:00:11]} 44. Nd6 {[%clk 0:00:07]}  Ng7 {[%clk 0:00:09]} 45. Nb7 {[%clk 0:00:05]}  Ne6 {[%clk 0:00:09]} 46. Nd6 {[%clk 0:00:05]}  Ng7 {[%clk 0:00:10]} 47. Nc4 {[%clk 0:00:03]}  Bxc5 {[%clk 0:00:08]} 48. Ne5 {[%clk 0:00:04]}  Bb6 {[%clk 0:00:07]} 49. Nxc6 {[%clk 0:00:04]}  Nh5 {[%clk 0:00:07]} 50. Kd2 {[%clk 0:00:02]}  Ng3 {[%clk 0:00:08]} 51. Ne5 {[%clk 0:00:02]}  Ba5+ {[%clk 0:00:09]} 52. Kc2 {[%clk 0:00:02]}  Bc7 {[%clk 0:00:10]} 53. Nd7+ {[%clk 0:00:02]}  Ke6 {[%clk 0:00:08]} 54. Nc5+ {[%clk 0:00:03]}  Kd5 {[%clk 0:00:09]} 55. Nb3 {[%clk 0:00:03]}  Bb6 {[%clk 0:00:09]} 56. Kd2 {[%clk 0:00:03]}  Nf1+ {[%clk 0:00:10]} 57. Ke2 {[%clk 0:00:03]}  Nxe3 {[%clk 0:00:11]} 58. Nd2 {[%clk 0:00:04]}  Ke6 {[%clk 0:00:10]} 59. a4 {[%clk 0:00:04]}  Ng2 {[%clk 0:00:10]} 60. Nc4 {[%clk 0:00:04]}  Nxf4+ {[%clk 0:00:11]} 61. Kd2 {[%clk 0:00:05]}  Bd4 {[%clk 0:00:11]} 62. a5 {[%clk 0:00:05]}  Nd5 {[%clk 0:00:12]} 63. Bg8+ {[%clk 0:00:06]}  Kf6 {[%clk 0:00:10]} 64. Bxd5 {[%clk 0:00:06]}  Bc5 {[%clk 0:00:11]} 65. a6 {[%clk 0:00:06]}  Kg5 {[%clk 0:00:11]} 66. Ke2 {[%clk 0:00:06]}  Kf4 {[%clk 0:00:11]} 67. Na5 {[%clk 0:00:06]}  Kg3 {[%clk 0:00:10]} 68. Nc6 {[%clk 0:00:05]}  Kxh3 {[%clk 0:00:09]} 69. Be6 {[%clk 0:00:05]}  Kg4 {[%clk 0:00:09]} 70. Ne5+ {[%clk 0:00:06]}  Kg3 {[%clk 0:00:09]} 71. Bxf5 {[%clk 0:00:06]}  h3 {[%clk 0:00:10]} 72. Bxe4 {[%clk 0:00:03]}  Kf4 {[%clk 0:00:10]} 73. Bb7 {[%clk 0:00:02]}  Kxe5 {[%clk 0:00:10]} 74. Kf3 {[%clk 0:00:03]}  h2 {[%clk 0:00:09]} 75. Kg2 {[%clk 0:00:03]}  Bg1 {[%clk 0:00:10]} 76. Kh1 {[%clk 0:00:04]}  Kd6 {[%clk 0:00:10]} 77. Kg2 {[%clk 0:00:05]}  Kc7 {[%clk 0:00:11]} 78. Kh1 {[%clk 0:00:06]}  Kb8 {[%clk 0:00:12]} 79. Kg2 {[%clk 0:00:06]}  Kc7 {[%clk 0:00:13]} 80. Kh1 {[%clk 0:00:07]}  Kb8 {[%clk 0:00:14]} 81. Kg2 {[%clk 0:00:08]}  Kc7 {[%clk 0:00:15]} 1/2-1/2


[Site "https://www.chess.com"]